fUST/lending_fUST_20250226
["ID","MTS","AMOUNT","RATE_DAILY","PERIOD"]
[354495421,1740537042085,-500.0,0.00039172,2]
[354495422,1740537042094,-500.0,0.00039172,2]
[354495423,1740537042103,-622.42,0.00039172,2]
[354495424,1740537042112,-500.0,0.00039172,2]
[354495425,1740537042121,-500.0,0.00039172,2]
[354495426,1740537042129,-501.87968672,0.00039172,2]
[354495427,1740537042139,-500.0,0.00039172,2]
[354495428,1740537042149,-501.9481218,0.00039172,2]
[354495429,1740537042158,-503.47205022,0.00039172,2]
[354495430,1740537042167,-500.0,0.00039172,2]
[354495431,1740537042176,-551.18,0.00039172,2]
[354495432,1740537042187,-500.91616731,0.00039172,2]
[354495433,1740537042199,-500.8302258,0.00039172,2]
[354495434,1740537042209,-501.86759085,0.00039172,2]
[354495435,1740537042219,-676.48,0.00039172,2]
[354495436,1740537042229,-809.17,0.00039172,2]
[354495437,1740537042239,-500.0,0.00039172,2]
[354495438,1740537042249,-500.0,0.00039172,2]
[354495439,1740537042258,-500.0,0.00039172,2]
[354495440,1740537042270,-500.0,0.00039172,2]
[354495441,1740537042280,-500.0,0.00039172,2]
[354495442,1740537042291,-500.0,0.00039172,2]
[354495443,1740537042301,-500.0,0.00039172,2]
[354495444,1740537042310,-304.75221311,0.00039172,2]
[354495445,1740537042319,-551.92,0.00039172,2]
[354495446,1740537042331,-500.0,0.00039172,2]
[354495447,1740537042340,-508.95310613,0.00039172,2]
[354495448,1740537042350,-501.88786708,0.00039172,2]
[354495449,1740537042360,-500.0,0.00039172,2]
[354495450,1740537042369,-500.0,0.00039172,2]
[354495451,1740537042379,-500.0,0.00039172,2]
[354495452,1740537042388,-500.0,0.00039172,2]
[354495453,1740537042398,-500.0,0.00039172,2]
[354495454,1740537042407,-500.0,0.00039172,2]
[354495455,1740537042419,-503.11871147,0.00039172,2]
[354495456,1740537042429,-500.0,0.00039172,2]
[354495457,1740537042438,-500.60450105,0.00039172,2]
[354495458,1740537042448,-500.0,0.00039172,2]
[354495459,1740537042457,-500.0,0.00039172,2]
[354495460,1740537042466,-502.62616333,0.00039172,2]
[354495461,1740537042476,-500.0,0.00039172,2]
[354495462,1740537042485,-500.0,0.00039172,2]
[354495463,1740537042495,-500.0,0.00039172,2]
[354495464,1740537042504,-500.0,0.00039172,2]
[354495465,1740537042514,-748.7,0.00039172,2]
[354495466,1740537042523,-623.9,0.00039172,2]
[354495467,1740537042581,-500.0,0.00039172,2]
[354495468,1740537042591,-1948.39,0.00039172,2]
[354495469,1740537042600,-500.29479642,0.00039172,2]
[354495470,1740537042609,-500.0,0.00039172,2]
[354495471,1740537042619,-910.92,0.00039172,2]
[354495472,1740537042628,-501.09649719,0.00039172,2]
[354495473,1740537042638,-500.0,0.00039172,2]
[354495474,1740537042647,-500.0,0.00039172,2]
[354495475,1740537042656,-602.37,0.00039172,2]
[354495476,1740537042665,-151.0,0.00039172,14]
[354495477,1740537042675,-151.0,0.00039172,14]
[354495478,1740537042684,-500.0,0.00039172,2]
[354495479,1740537042693,-501.32469978,0.00039172,2]
[354495480,1740537042702,-503.27902968,0.00039172,2]
[354495481,1740537042712,-501.43046129,0.00039172,2]
[354495482,1740537042721,-500.0,0.00039172,2]
[354495483,1740537042731,-500.0,0.00039172,2]
[354495484,1740537042740,-602.77323972,0.00039172,2]
[354495485,1740537042749,-502.25588093,0.00039172,2]
[354495486,1740537042759,-500.0,0.00039172,2]
[354495487,1740537042768,-573.24,0.00039172,2]
[354495488,1740537042777,-500.0,0.00039172,2]
[354495489,1740537042786,-500.0,0.00039172,2]
[354495490,1740537042794,-500.0,0.00039172,2]
[354495491,1740537042803,-677.04,0.00039172,2]
[354495492,1740537042812,-508.57,0.00039172,2]
[354495493,1740537042821,-501.30222384,0.00039172,2]
[354495494,1740537042832,-759.76,0.00039172,2]
[354495495,1740537042841,-500.0,0.00039172,2]
[354495496,1740537042851,-500.0,0.00039172,2]
[354495497,1740537042860,-500.0,0.00039172,2]
[354495498,1740537042869,-500.0,0.00039172,2]
[354495499,1740537042877,-500.0,0.00039172,2]
[354495500,1740537042886,-597.99,0.00039172,2]
[354495501,1740537042895,-611.53164826,0.00039172,2]
[354495502,1740537042905,-500.0,0.00039172,2]
[354495503,1740537042914,-500.0,0.00039172,2]
[354495504,1740537042923,-753.25,0.00039172,2]
[354495505,1740537042933,-500.0,0.00039172,2]
[354495506,1740537042942,-500.0,0.00039172,2]
[354495507,1740537042951,-500.0,0.00039172,2]
[354495508,1740537042960,-500.0,0.00039172,2]
[354495509,1740537042969,-502.21739566,0.00039172,2]
[354495511,1740537042978,-500.0,0.00039172,2]
[354495512,1740537042987,-500.0,0.00039172,2]
[354495513,1740537042996,-500.0,0.00039172,2]
[354495514,1740537043006,-503.32504192,0.00039172,2]
[354495515,1740537043015,-500.0,0.00039172,2]
[354495516,1740537043023,-500.0,0.00039172,2]
[354495517,1740537043033,-505.3139328,0.00039172,2]
[354495518,1740537043042,-500.0,0.00039172,2]
[354495519,1740537043051,-500.0,0.00039172,2]
[354495520,1740537043060,-500.0,0.00039172,2]
[354495521,1740537043069,-500.0,0.00039172,2]
[354495522,1740537043079,-500.0,0.00039172,2]
[354495524,1740537043088,-500.0,0.00039172,2]
[354495525,1740537043097,-501.3727944,0.00039172,2]
[354495526,1740537043106,-500.0,0.00039172,2]
[354495527,1740537043115,-500.0,0.00039172,2]
[354495528,1740537043124,-500.98011599,0.00039172,2]
[354495529,1740537043133,-11241.35,0.00039172,2]
[354495530,1740537043142,-641.93,0.00039172,2]
[354495531,1740537043151,-500.0,0.00039172,2]
[354495532,1740537043160,-500.0,0.00039172,2]
[354495533,1740537043169,-500.0,0.00039172,2]
[354495534,1740537043178,-500.0,0.00039172,2]
[354495535,1740537043192,-500.0,0.00039172,2]
[354495536,1740537043200,-500.0,0.00039172,2]
[354495537,1740537043210,-502.86126855,0.00039172,2]
[354495538,1740537043219,-500.0,0.00039172,2]
[354495540,1740537043228,-500.0,0.00039172,2]
[354495543,1740537043237,-500.0,0.00039172,2]
[354495545,1740537043247,-526.53,0.00039172,2]
[354495546,1740537043256,-500.0,0.00039172,2]
[354495547,1740537043267,-500.0,0.00039172,2]
[354495548,1740537043277,-1891.88,0.00039172,2]
[354495549,1740537043287,-500.0,0.00039172,2]
[354495550,1740537043296,-262.55652092,0.00039172,2]
[354495551,1740537043305,-500.0,0.00039172,2]
[354495552,1740537043315,-500.0,0.00039172,2]
[354495553,1740537043324,-500.0,0.00039172,2]
[354495554,1740537043335,-878.07,0.00039172,2]
[354495555,1740537043344,-610.07,0.00039172,2]
[354495557,1740537043353,-633.94759213,0.00039172,2]
[354495558,1740537043362,-194886.72,0.00039172,2]
[354495559,1740537043371,-503.97746433,0.00039172,2]
[354495560,1740537043380,-500.0,0.00039172,2]
[354495561,1740537043388,-500.0,0.00039172,2]
[354495562,1740537043398,-500.0,0.00039172,2]
[354495563,1740537043407,-500.0,0.00039172,2]
[354495564,1740537043416,-500.0,0.00039172,2]
[354495565,1740537043426,-503.98478958,0.00039172,2]
[354495566,1740537043435,-3804.92,0.00039172,2]
[354495567,1740537043444,-500.0,0.00039172,2]
[354495568,1740537043454,-171.156663,0.00039172,14]
[354495569,1740537043463,-171.156663,0.00039172,14]
[354495570,1740537043472,-1927.84,0.00039172,2]
[354495571,1740537043481,-697.07,0.00039172,2]
[354495572,1740537043491,-500.0,0.00039172,2]
[354495573,1740537043500,-171.156663,0.00039172,14]
[354495574,1740537043509,-171.156663,0.00039172,14]
[354495575,1740537043519,-729.97,0.00039172,2]
[354495576,1740537043528,-500.0,0.00039172,2]
[354495577,1740537043538,-207.04739527,0.00039172,2]
[354495578,1740537043547,-1200.47,0.00039172,2]
[354495579,1740537043557,-500.0,0.00039172,2]
[354495580,1740537043566,-523.65165531,0.00039172,2]
[354495581,1740537043575,-1736.91,0.00039172,2]
[354495582,1740537043585,-500.0,0.00039172,2]
[354495583,1740537043594,-515.29,0.00039172,2]
[354495584,1740537043604,-500.0,0.00039172,2]
[354495585,1740537043613,-760.77,0.00039172,2]
[354495586,1740537043623,-282.64000079,0.00039172,2]
[354495587,1740537043632,-500.0,0.00039172,2]
[354495588,1740537043641,-500.0,0.00039172,2]
[354495589,1740537043650,-500.0,0.00039172,2]
[354495590,1740537043661,-1009.56,0.00039172,2]
[354495591,1740537043670,-500.0,0.00039172,2]
[354495592,1740537043679,-503.31267546,0.00039172,2]
[354495593,1740537043689,-506.04046465,0.00039172,2]
[354495594,1740537043699,-503.75853387,0.00039172,2]
[354495595,1740537043708,-500.0,0.00039172,2]
[354495596,1740537043718,-500.0,0.00039172,2]
[354495597,1740537043727,-254.29736655,0.00039172,2]
[354495598,1740537043737,-500.0,0.00039172,2]
[354495599,1740537043747,-1296.98,0.00039172,2]
[354495600,1740537043756,-28330.32,0.00039172,2]
[354495601,1740537043765,-181.77956208,0.00039172,2]
[354495602,1740537043775,-502.57269803,0.00039172,2]
[354495603,1740537043784,-500.0,0.00039172,2]
[354495604,1740537043793,-503.75342775,0.00039172,2]
[354495605,1740537043802,-500.0,0.00039172,2]
[354495606,1740537043812,-500.0,0.00039172,2]
[354495607,1740537043821,-3156.19,0.00039172,2]
[354495608,1740537043831,-500.0,0.00039172,2]
[354495609,1740537043840,-504.11662387,0.00039172,2]
[354495610,1740537043849,-500.0,0.00039172,2]
[354495611,1740537043857,-500.0,0.00039172,2]
[354495612,1740537043867,-839.01,0.00039172,2]
[354495613,1740537043876,-632.18,0.00039172,2]
[354495614,1740537043885,-500.0,0.00039173,5]
[354495615,1740537043894,-501.25164145,0.00039173,5]
[354495616,1740537043903,-500.0,0.00039173,5]
[354495617,1740537043912,-500.0,0.00039173,5]
[354495618,1740537043921,-400.40806702,0.00039173,5]
[354495619,1740537043929,-278.39763994,0.00039173,5]
[354495620,1740537043938,-500.0,0.00039173,5]
[354495621,1740537043946,-500.0,0.00039173,5]
[354495622,1740537043955,-267.91619475,0.00039173,5]
[354495623,1740537043964,-500.0,0.00039173,5]
[354495624,1740537043973,-455.91219229,0.00039173,5]
[354495625,1740537043982,-500.0,0.00039173,5]
[354495626,1740537043991,-500.0,0.00039173,5]
[354495627,1740537044000,-428.76556291,0.00039173,5]
[354495628,1740537044009,-314.46080446,0.00039173,5]
[354495629,1740537044019,-500.0,0.00039173,5]
[354495630,1740537044028,-500.88309981,0.00039173,5]
[354495631,1740537044035,-500.66014526,0.00039173,5]
[354495632,1740537044043,-500.0,0.00039173,5]
[354495633,1740537044053,-500.0,0.00039173,5]
[354495634,1740537044063,-1422.34,0.00039173,2]
[354495635,1740537044073,-1112.32,0.00039173,2]
[354495636,1740537044083,-502.35417305,0.00039173,2]
[354495637,1740537044092,-500.0,0.00039173,2]
[354495638,1740537044101,-500.0,0.00039173,2]
[354495639,1740537044110,-500.0,0.00039173,2]
[354495640,1740537044119,-500.0,0.00039173,2]
[354495641,1740537044128,-1166.5,0.00039173,2]
[354495642,1740537044138,-578.16,0.00039173,2]
[354495643,1740537044148,-2406.03,0.00039173,2]
[354495644,1740537044157,-500.0,0.00039173,2]
[354495645,1740537044166,-500.0,0.00039173,2]
[354495646,1740537044175,-1914.67,0.00039173,2]
[354495647,1740537044184,-500.0,0.00039173,2]
[354495648,1740537044196,-500.0,0.00039173,2]
[354495649,1740537044205,-500.0,0.00039173,2]
[354495650,1740537044214,-1380.01,0.00039173,2]
[354495651,1740537044223,-502.00621796,0.00039173,2]
[354495652,1740537044233,-500.0,0.00039173,2]
[354495653,1740537044242,-500.0,0.00039173,2]
[354495654,1740537044251,-1025.71,0.00039173,2]
[354495655,1740537044260,-1222.97,0.00039173,2]
[354495656,1740537044270,-500.0,0.00039173,2]
[354495657,1740537044280,-151.0,0.00039173,14]
[354495658,1740537044289,-1406.88,0.00039173,2]
[354495659,1740537044299,-500.0,0.00039173,2]
[354495660,1740537044308,-500.0,0.00039173,2]
[354495661,1740537044317,-500.0,0.00039173,2]
[354495662,1740537044327,-500.0,0.00039173,2]
[354495663,1740537044336,-500.0,0.00039173,2]
[354495664,1740537044345,-872.66,0.00039173,2]
[354495665,1740537044356,-501.05615706,0.00039173,2]
[354495666,1740537044365,-1252.46,0.00039173,2]
[354495667,1740537044375,-500.0,0.00039173,2]
[354495668,1740537044384,-500.0,0.00039173,2]
[354495669,1740537044394,-556.34,0.00039173,2]
[354495670,1740537044405,-500.0,0.00039173,2]
[354495671,1740537044414,-615.09,0.00039173,2]
[354495672,1740537044424,-500.0,0.00039173,2]
[354495673,1740537044433,-500.0,0.00039173,2]
[354495674,1740537044443,-500.0,0.00039173,2]
[354495675,1740537044452,-2676.82,0.00039173,2]
[354495676,1740537044463,-500.0,0.00039173,2]
[354495677,1740537044473,-500.66933173,0.00039173,2]
[354495678,1740537044483,-500.0,0.00039173,2]
[354495679,1740537044492,-2308.8,0.00039173,2]
[354495680,1740537044501,-2761.04,0.00039173,2]
[354495681,1740537044511,-500.0,0.00039173,2]
[354495682,1740537044520,-273.89624262,0.00039173,2]
[354495683,1740537044530,-171.156663,0.00039173,14]
[354495684,1740537044539,-500.0,0.00039173,2]
[354495685,1740537044549,-171.156663,0.00039173,14]
[354495686,1740537044558,-563.51,0.00039173,2]
[354495687,1740537044568,-1008.0,0.00039173,2]
[354495688,1740537044577,-500.0,0.00039173,2]
[354495689,1740537044591,-1259.77,0.00039173,2]
[354495690,1740537044601,-500.0,0.00039173,2]
[354495691,1740537044611,-793.63,0.00039173,2]
[354495692,1740537044620,-3751.9638485,0.00039347,2]
[354495693,1740537044630,-512.73439905,0.00039425,2]
[354495694,1740537044639,-533.07,0.00039425,2]
[354495695,1740537044649,-500.0,0.00039425,2]
[354495696,1740537044659,-1150.4,0.00039425,2]
[354495697,1740537044670,-500.0,0.00039425,2]
[354495698,1740537044679,-6193.21,0.00039434,2]
[354495699,1740537044689,-500.0,0.00039434,2]
[354495700,1740537044700,-2018.05,0.00039434,2]
[354495701,1740537044710,-1377.46,0.00039434,2]
[354495702,1740537044720,-1408.15,0.00039434,2]
[354495703,1740537044730,-500.0,0.00039434,2]
[354495704,1740537044739,-500.0,0.00039435,2]
[354495705,1740537044749,-2410.14,0.00039435,2]
[354495706,1740537044759,-500.0,0.00039435,2]
[354495707,1740537044768,-3580.14,0.00039435,2]
[354495708,1740537044778,-1817.0,0.00039435,2]
[354495709,1740537044788,-552.15,0.00039435,2]
[354495710,1740537044798,-171.156663,0.00039435,14]
[354495711,1740537044807,-171.156665,0.00039435,14]
[354495712,1740537044817,-749.83,0.00039435,2]
[354495713,1740537044827,-942.51,0.00039435,2]
[354495714,1740537044840,-1328.48,0.00039435,2]
[354495715,1740537044849,-6277.48,0.00039435,2]
[354495716,1740537044859,-14199.6,0.00039435,2]
[354495717,1740537044869,-2600.89,0.00039435,2]
[354495718,1740537044878,-596.77,0.00039435,2]
[354495720,1740537044888,-1870.51,0.00039435,2]
[354495722,1740537044898,-500.0,0.00039435,2]
[354495723,1740537044908,-4394.18,0.00039435,2]
[354495724,1740537044918,-14734.13,0.00039435,2]
[354495725,1740537044927,-309.93869239,0.00039435,2]
[354495726,1740537045336,-481.6659432,0.00038886,2]
[354495727,1740537045360,-18.3340568,0.00038886,2]
[354495728,1740537045370,-500.0,0.00038886,2]
[354495729,1740537045380,-589.31973958,0.00038886,15]
[354495730,1740537045389,-500.0,0.00038886,15]
[354495731,1740537045399,-500.0,0.00038886,2]
[354495732,1740537045408,-318.52375359,0.00038886,2]
[354495733,1740537045418,-381.92245001,0.00038886,15]
[354495734,1740537045688,-118.07754999,0.00038886,15]
[354495735,1740537045698,-500.0,0.00038886,15]
[354495736,1740537045707,-500.0,0.00038886,2]
[354495737,1740537045718,-500.0,0.00038886,15]
[354495738,1740537045728,-371.6203184,0.00038886,15]
[354495739,1740537045738,-500.0,0.00038886,2]
[354495740,1740537045748,-500.0,0.00038886,15]
[354495741,1740537045758,-500.0,0.00038886,15]
[354495742,1740537045768,-500.0,0.00038886,15]
[354495743,1740537045777,-500.0,0.00038886,2]
[354495744,1740537045787,-500.0,0.00038886,15]
[354495745,1740537045796,-500.0,0.00038886,15]
[354495746,1740537045806,-266.24633786,0.00038886,15]
[354495747,1740537045816,-500.0,0.00038886,15]
[354495748,1740537045826,-500.0,0.00038886,15]
[354495749,1740537045837,-500.0,0.00038886,15]
[354495750,1740537045847,-500.0,0.00038886,15]
[354495751,1740537045857,-500.0,0.00038886,15]
[354495752,1740537045866,-112.17273916,0.00038886,15]
[354495753,1740537045878,-302.23434211,0.00038886,15]
[354495754,1740537045890,-85.59291873,0.00038886,15]
[354495755,1740537045900,-500.0,0.00038886,15]
[354495756,1740537045910,-407.43205633,0.00038886,15]
[354495757,1740537045919,-500.0,0.00038886,15]
[354495758,1740537045929,-194.47502494,0.00038886,15]
[354495759,1740537045941,-305.52497506,0.00038886,15]
[354495760,1740537045951,-337.28813494,0.00038886,15]
[354495761,1740537045964,-162.71186506,0.00038886,15]
[354495762,1740537045974,-500.0,0.00038886,15]
[354495763,1740537045983,-500.0,0.00038886,15]
[354495764,1740537045993,-500.0,0.00038886,15]
[354495765,1740537046003,-500.0,0.00038886,15]
[354495767,1740537046013,-156.87565722,0.00038886,15]
[354495839,1740537368622,10000.0,0.000212,30]
[354495840,1740537377551,10000.0,0.000212,30]
[354495841,1740537384249,788.41101682,0.000212,30]
[354495842,1740537397388,10000.0,0.00021,10]
[354495843,1740537405777,10000.0,0.00021,10]
[354495844,1740537450551,10000.0,0.00021,10]
[354495845,1740537459553,5500.26133508,0.00021,10]
[354495846,1740537861137,-9211.58898318,0.000212,30]
[354495847,1740537910292,-3712.41524957,0.0002079,10]
[354495848,1740537910315,-787.32341535,0.00021,10]
[354495849,1740537916082,-3712.41524957,0.00021,10]
[354495881,1740538231865,-400.0,0.00034219,2]
[354495883,1740538231876,-6848.8112959,0.0003422,2]
[354495885,1740538231887,-217.0555543,0.0003422,2]
[354495887,1740538231898,-300.0,0.00035,14]
[354495890,1740538231909,-560.0,0.0003672,2]
[354495892,1740538231919,-106444.78272309,0.0003799,7]
[354495894,1740538231932,-1273.32038068,0.0003799,7]
[354495896,1740538231944,-19963.05885603,0.0003799,7]
[354495898,1740538231956,-15558.1376532,0.0003799,7]
[354496046,1740538237691,-236.24109141,0.00037989,15]
[354496047,1740538237701,-500.0,0.00037989,15]
[354496048,1740538237710,-500.0,0.00037989,15]
[354496049,1740538237720,-262.8256534,0.00037989,15]
[354496050,1740538237731,-500.0,0.00037989,15]
[354496051,1740538237743,-446.42871633,0.00037989,15]
[354496052,1740538237755,-500.0,0.00037989,15]
[354496053,1740538237765,-500.0,0.00037989,15]
[354496054,1740538237774,-107.80172831,0.00037989,15]
[354496055,1740538237786,-392.19827169,0.00037989,15]
[354496056,1740538237795,-500.0,0.00037989,2]
[354496057,1740538237805,-500.0,0.00037989,15]
[354496058,1740538237815,-367.18025093,0.00037989,15]
[354496059,1740538237824,-152.4022576,0.00037989,15]
[354496060,1740538237834,-500.0,0.00037989,15]
[354496061,1740538237844,-424.28041706,0.00037989,2]
[354496062,1740538237854,-500.0,0.00037989,15]
[354496063,1740538237863,-500.0,0.00037989,15]
[354496064,1740538237872,-433.96345906,0.00037989,15]
[354496065,1740538237884,-66.03654094,0.00037989,15]
[354496066,1740538237894,-500.0,0.00037989,15]
[354496067,1740538237904,-500.0,0.00037989,15]
[354496068,1740538237913,-500.0,0.00037989,15]
[354496069,1740538237923,-81.30875237,0.00037989,15]
[354496070,1740538237936,-418.69124763,0.00037989,15]
[354496071,1740538237946,-500.0,0.00037989,15]
[354496072,1740538237957,-500.0,0.00037989,15]
[354496073,1740538237967,-500.0,0.00037989,15]
[354496074,1740538237976,-432.76212398,0.00037989,15]
[354496075,1740538237985,-388.29271499,0.00037989,15]
[354496076,1740538238002,-111.70728501,0.00037989,15]
[354496077,1740538238011,-500.0,0.00037989,15]
[354496078,1740538238021,-500.0,0.00037989,15]
[354496079,1740538238030,-500.0,0.00037989,15]
[354496080,1740538238039,-500.0,0.00037989,15]
[354496081,1740538238049,-500.0,0.00037989,15]
[354496082,1740538238058,-500.0,0.00037989,15]
[354496083,1740538238067,-500.0,0.00037989,15]
[354496084,1740538238077,-500.0,0.00037989,15]
[354496085,1740538238086,-500.0,0.00037989,15]
[354496086,1740538238095,-500.0,0.00037989,15]
[354496087,1740538238105,-500.0,0.00037989,15]
[354496088,1740538238115,-500.0,0.00037989,15]
[354496089,1740538238124,-497.04091839,0.00037989,15]
[354496090,1740538238137,-2.95908161,0.00037989,15]
[354496091,1740538238146,-4167.44513651,0.0003799,7]
[354496092,1740538238159,-85634.92121308,0.0003799,7]
[354496093,1740538238171,-7491.14869272,0.0003799,7]
[354496110,1740538240090,-1977.6301833,0.0003799,7]
[354496111,1740538240102,-261.0,0.0003799,7]
[354496112,1740538240114,-4702.0724097,0.0003799,7]
[354496113,1740538240125,-760.63739624,0.0003799,7]
[354496140,1740538242973,-84.10487472,0.0003799,7]
[354496176,1740538245859,-251684.56179211,0.0003799,7]
[354496177,1740538245871,-15790.352,0.00038,120]
[354496178,1740538245882,-159.87819117,0.00038256,2]
[354496179,1740538245894,-500.0,0.00038356,2]
[354496180,1740538245907,-500.99559527,0.00038356,2]
[354496181,1740538245919,-500.0,0.00038356,2]
[354496182,1740538245931,-1006.6,0.00038356,2]
[354496183,1740538245943,-500.0,0.00038356,2]
[354496184,1740538245955,-500.0,0.00038356,2]
[354496185,1740538245967,-500.0,0.00038356,2]
[354496186,1740538245981,-500.0,0.00038356,2]
[354496187,1740538245992,-500.0,0.00038356,2]
[354496188,1740538246004,-500.0,0.00038356,2]
[354496189,1740538246016,-500.0,0.00038356,2]
[354496190,1740538246029,-505.33488261,0.00038356,2]
[354496191,1740538246040,-824.98,0.00038356,2]
[354496192,1740538246051,-500.0,0.00038356,2]
[354496193,1740538246064,-500.87711319,0.00038356,2]
[354496194,1740538246076,-500.0,0.00038356,2]
[354496195,1740538246088,-500.0,0.00038356,2]
[354496196,1740538246099,-501.10503806,0.00038356,2]
[354496197,1740538246111,-500.0,0.00038356,2]
[354496198,1740538246121,-500.0,0.00038356,2]
[354496199,1740538246133,-500.62779038,0.00038356,2]
[354496200,1740538246147,-500.0,0.00038356,2]
[354496201,1740538246159,-500.0,0.00038356,2]
[354496202,1740538246171,-500.0,0.00038356,2]
[354496203,1740538246182,-877.0,0.00038356,2]
[354496204,1740538246194,-500.0,0.00038356,2]
[354496205,1740538246206,-500.0,0.00038356,2]
[354496206,1740538246218,-500.82781735,0.00038356,2]
[354496207,1740538246230,-500.0,0.00038356,2]
[354496208,1740538246243,-501.5409155,0.00038356,2]
[354496209,1740538246255,-500.0,0.00038356,2]
[354496210,1740538246267,-539.72982251,0.00038356,2]
[354496211,1740538246279,-574.28048632,0.00038356,2]
[354496212,1740538246291,-509.48382353,0.00038356,2]
[354496213,1740538246302,-500.0,0.00038356,2]
[354496214,1740538246312,-500.0,0.00038356,2]
[354496215,1740538246322,-501.12702536,0.00038356,2]
[354496216,1740538246332,-500.59221546,0.00038356,2]
[354496217,1740538246342,-500.0,0.00038356,2]
[354496218,1740538246352,-500.61877447,0.00038356,2]
[354496219,1740538246364,-500.0,0.00038356,2]
[354496220,1740538246377,-500.0,0.00038356,2]
[354496221,1740538246389,-519.58565372,0.00038356,2]
[354496222,1740538246401,-501.90937818,0.00038356,2]
[354496223,1740538246411,-336.08790142,0.00038356,2]
[354496224,1740538246421,-500.0,0.00038356,2]
[354496225,1740538246432,-500.0,0.00038356,2]
[354496226,1740538246444,-500.0,0.00038356,2]
[354496227,1740538246454,-605.21,0.00038356,2]
[354496228,1740538246467,-500.81272007,0.00038356,2]
[354496229,1740538246477,-500.45773943,0.00038356,2]
[354496230,1740538246487,-501.27710126,0.00038356,2]
[354496231,1740538246497,-526.23,0.00038356,2]
[354496232,1740538246507,-500.0,0.00038356,2]
[354496233,1740538246517,-500.0,0.00038356,2]
[354496234,1740538246527,-501.29926375,0.00038356,2]
[354496235,1740538246538,-500.0,0.00038356,2]
[354496236,1740538246553,-500.0,0.00038356,2]
[354496237,1740538246567,-501.765662,0.00038356,2]
[354496238,1740538246578,-661.78,0.00038356,2]
[354496239,1740538246591,-500.0,0.00038356,2]
[354496240,1740538246602,-5682.46,0.00038356,2]
[354496241,1740538246612,-501.08160452,0.00038356,2]
[354496242,1740538246623,-741.74,0.00038356,2]
[354496243,1740538246635,-500.0,0.00038356,2]
[354496244,1740538246646,-500.0,0.00038356,2]
[354496245,1740538246657,-500.0,0.00038356,50]
[354496246,1740538246667,-500.0,0.00038356,2]
[354496247,1740538246678,-500.0,0.00038356,2]
[354496248,1740538246689,-1955.7,0.00038356,2]
[354496249,1740538246699,-500.0,0.00038356,2]
[354496250,1740538246711,-500.0,0.00038356,2]
[354496251,1740538246721,-500.0,0.00038356,2]
[354496252,1740538246732,-1252.97,0.00038356,2]
[354496253,1740538246742,-501.28589801,0.00038356,2]
[354496254,1740538246753,-547.59,0.00038356,2]
[354496255,1740538246763,-500.3994369,0.00038356,2]
[354496256,1740538246774,-506.31416755,0.00038356,2]
[354496257,1740538246786,-500.0,0.00038356,2]
[354496258,1740538246797,-500.72849427,0.00038356,2]
[354496259,1740538246808,-1246.95,0.00038356,2]
[354496260,1740538246818,-501.40499505,0.00038356,2]
[354496261,1740538246829,-500.0,0.00038356,2]
[354496262,1740538246839,-500.0,0.00038356,2]
[354496263,1740538246851,-501.72843369,0.00038356,2]
[354496264,1740538246862,-500.76615977,0.00038356,2]
[354496265,1740538246873,-500.0,0.00038356,2]